fUSD/lending_fUSD_20250105
["ID","MTS","AMOUNT","RATE_DAILY","PERIOD"]
[347733005,1736086276381,-904.05,9.863e-05,2]
[347733006,1736086276391,-500.0,9.863e-05,2]
[347733007,1736086276401,-1274.18,9.863e-05,2]
[347733008,1736086276410,-500.0,9.863e-05,2]
[347733009,1736086276420,-1646.52,9.863e-05,2]
[347733010,1736086276431,-649.75,9.863e-05,2]
[347733011,1736086276441,-500.0,9.863e-05,2]
[347733012,1736086276451,-500.0,9.863e-05,2]
[347733013,1736086276461,-1698.25,9.863e-05,2]
[347733014,1736086276470,-726.75,9.863e-05,2]
[347733015,1736086276479,-1175.56,9.863e-05,2]
[347733016,1736086276489,-1006.34,9.863e-05,2]
[347733017,1736086276499,-500.0,9.863e-05,2]
[347733018,1736086276510,-1992.9,9.863e-05,2]
[347733019,1736086276521,-7862.72,9.863e-05,2]
[347733020,1736086276531,-276.58574053,9.863e-05,2]
[347733021,1736086276541,-500.0,9.863e-05,2]
[347733022,1736086276551,-876.69,9.863e-05,2]
[347733023,1736086276560,-759.27,9.863e-05,2]
[347733024,1736086276570,-500.0,9.863e-05,2]
[347733025,1736086276580,-500.0,9.863e-05,2]
[347733026,1736086276589,-500.0,9.863e-05,2]
[347733027,1736086276601,-773.96,9.863e-05,2]
[347733028,1736086276612,-731.73,9.863e-05,2]
[347733029,1736086276622,-5451.35,9.863e-05,2]
[347733030,1736086276632,-629.31,9.863e-05,2]
[347733031,1736086276641,-973.18,9.863e-05,2]
[347733032,1736086276651,-1242.03,9.863e-05,2]
[347733033,1736086276661,-500.0,9.863e-05,2]
[347733034,1736086276670,-500.0,9.863e-05,2]
[347733035,1736086276680,-500.0,9.863e-05,2]
[347733036,1736086276690,-1142.45,9.863e-05,2]
[347733037,1736086276700,-694.64,9.863e-05,2]
[347733038,1736086276710,-765.41,9.863e-05,2]
[347733039,1736086276720,-1305.75,9.863e-05,2]
[347733040,1736086276730,-636.94,9.863e-05,2]
[347733041,1736086276740,-1082.12,9.863e-05,2]
[347733042,1736086276750,-1333.19,9.863e-05,2]
[347733043,1736086276760,-500.0,9.863e-05,2]
[347733044,1736086276770,-791.96,9.863e-05,2]
[347733045,1736086276780,-647.45,9.863e-05,2]
[347733046,1736086276790,-500.0,9.863e-05,2]
[347733047,1736086276799,-500.1,9.863e-05,2]
[347733048,1736086276809,-906.7,9.863e-05,2]
[347733049,1736086276819,-513.23,9.863e-05,2]
[347733050,1736086276830,-500.0,9.863e-05,2]
[347733051,1736086276840,-744.9,9.863e-05,2]
[347733052,1736086276850,-500.0,9.863e-05,2]
[347733053,1736086276860,-500.0,9.863e-05,2]
[347733054,1736086276870,-973.52,9.863e-05,2]
[347733055,1736086276880,-752.87,9.863e-05,2]
[347733056,1736086276889,-616.35,9.863e-05,2]
[347733057,1736086276899,-4352.47,9.863e-05,2]
[347733058,1736086276909,-1428.44,9.863e-05,2]
[347733059,1736086276919,-1510.34,9.863e-05,2]
[347733060,1736086276930,-746.25,9.863e-05,2]
[347733061,1736086276940,-500.0,9.863e-05,2]
[347733062,1736086276952,-918.71,9.863e-05,2]
[347733063,1736086276962,-500.0,9.863e-05,2]
[347733064,1736086276972,-1062.74,9.863e-05,2]
[347733065,1736086276982,-500.0,9.863e-05,2]
[347733066,1736086276992,-864.92,9.863e-05,2]
[347733067,1736086277005,-542.36014857,9.863e-05,2]
[347733068,1736086277015,-505.07,9.863e-05,2]
[347733069,1736086277026,-500.0,9.863e-05,2]
[347733070,1736086277036,-1359.22,9.863e-05,2]
[347733071,1736086277046,-500.0,9.863e-05,2]
[347733072,1736086277056,-500.0,9.863e-05,2]
[347733073,1736086277067,-1013.07,9.863e-05,2]
[347733074,1736086277076,-1387.03,9.863e-05,2]
[347733075,1736086277086,-500.0,9.863e-05,2]
[347733076,1736086277096,-921.41,9.863e-05,2]
[347733077,1736086277106,-800.67,9.863e-05,2]
[347733078,1736086277116,-500.0,9.863e-05,2]
[347733079,1736086277127,-500.0,9.863e-05,2]
[347733080,1736086277137,-781.43,9.863e-05,2]
[347733081,1736086277147,-1250.77,9.863e-05,2]
[347733082,1736086277156,-500.0,9.863e-05,2]
[347733083,1736086277166,-766.06,9.863e-05,2]
[347733084,1736086277176,-955.76,9.863e-05,2]
[347733085,1736086277186,-620.83,9.863e-05,2]
[347733086,1736086277196,-838.48,9.863e-05,2]
[347733087,1736086277206,-809.23,9.863e-05,2]
[347733088,1736086277215,-897.32,9.863e-05,2]
[347733089,1736086277225,-907.19,9.863e-05,2]
[347733090,1736086277235,-248.6166885,9.863e-05,2]
[347733091,1736086277248,-658.24,9.863e-05,2]
[347733092,1736086277257,-500.0,9.863e-05,2]
[347733093,1736086277266,-1245.35,9.863e-05,2]
[347733094,1736086277276,-853.22,9.863e-05,2]
[347733095,1736086277286,-871.01,9.863e-05,2]
[347733096,1736086277296,-744.7,9.863e-05,2]
[347733097,1736086277305,-1600.74,9.863e-05,2]
[347733098,1736086277314,-593.39,9.863e-05,2]
[347733099,1736086277324,-500.0,9.863e-05,2]
[347733100,1736086277334,-500.0,9.863e-05,2]
[347733101,1736086277343,-500.0,9.863e-05,2]
[347733102,1736086277352,-1032.01,9.863e-05,2]
[347733103,1736086277362,-1063.17,9.863e-05,2]
[347733104,1736086277371,-2363.51,9.863e-05,2]
[347733105,1736086277380,-550.21447774,9.863e-05,2]
[347733106,1736086277389,-500.0,9.863e-05,2]
[347733107,1736086277399,-1177.99,9.863e-05,2]
[347733108,1736086277408,-1161.66,9.863e-05,2]
[347733109,1736086277417,-753.28,9.863e-05,2]
[347733110,1736086277427,-500.0,9.863e-05,2]
[347733111,1736086277435,-1107.81,9.863e-05,2]
[347733112,1736086277444,-978.31,9.863e-05,2]
[347733113,1736086277454,-607.43,9.863e-05,2]
[347733114,1736086277463,-500.0,9.863e-05,2]
[347733115,1736086277473,-802.04,9.863e-05,2]
[347733116,1736086277482,-500.0,9.863e-05,2]
[347733117,1736086277492,-622.25,9.863e-05,2]
[347733118,1736086277501,-1694.51,9.863e-05,2]
[347733119,1736086277511,-500.0,9.863e-05,2]
[347733120,1736086277520,-500.0,9.863e-05,2]
[347733121,1736086277530,-1454.15,9.863e-05,2]
[347733122,1736086277539,-1459.27,9.863e-05,2]
[347733123,1736086277549,-500.0,9.863e-05,2]
[347733124,1736086277559,-500.0,9.863e-05,2]
[347733125,1736086277568,-500.0,9.863e-05,2]
[347733126,1736086277578,-500.0,9.863e-05,2]
[347733127,1736086277587,-897.95,9.863e-05,2]
[347733128,1736086277596,-690.36,9.863e-05,2]
[347733129,1736086277606,-1009.99,9.863e-05,2]
[347733130,1736086277614,-500.0,9.863e-05,2]
[347733131,1736086277625,-1353.36,9.863e-05,2]
[347733132,1736086277634,-500.0,9.863e-05,2]
[347733133,1736086277643,-500.0,9.863e-05,2]
[347733134,1736086277653,-1505.77,9.863e-05,2]
[347733135,1736086277661,-877.09,9.863e-05,2]
[347733136,1736086277670,-500.0,9.863e-05,2]
[347733137,1736086277679,-500.0,9.863e-05,2]
[347733138,1736086277689,-673.85,9.863e-05,2]
[347733139,1736086277698,-500.0,9.863e-05,2]
[347733140,1736086277708,-1520.95,9.863e-05,2]
[347733141,1736086277718,-640.51,9.863e-05,2]
[347733142,1736086277727,-500.0,9.863e-05,2]
[347733143,1736086277737,-1468.66,9.863e-05,2]
[347733144,1736086277747,-792.2,9.863e-05,2]
[347733145,1736086277756,-500.0,9.863e-05,2]
[347733146,1736086277765,-1958.42,9.863e-05,2]
[347733147,1736086277775,-500.0,9.863e-05,2]
[347733148,1736086277786,-500.0,9.863e-05,2]
[347733149,1736086277795,-733.58,9.863e-05,2]
[347733150,1736086277805,-597.04,9.863e-05,2]
[347733151,1736086277815,-500.0,9.863e-05,2]
[347733152,1736086277824,-876.17,9.863e-05,2]
[347733153,1736086277833,-500.0,9.863e-05,2]
[347733154,1736086277843,-500.0,9.863e-05,2]
[347733155,1736086277852,-1788.82,9.863e-05,2]
[347733156,1736086277861,-760.3,9.863e-05,2]
[347733157,1736086277871,-772.33,9.863e-05,2]
[347733158,1736086277881,-767.2,9.863e-05,2]
[347733159,1736086277890,-500.0,9.863e-05,2]
[347733160,1736086277899,-3274.7,9.863e-05,2]
[347733161,1736086277909,-757.59,9.863e-05,2]
[347733162,1736086277919,-940.87,9.863e-05,2]
[347733163,1736086277928,-664.98,9.863e-05,2]
[347733164,1736086277939,-500.0,9.863e-05,2]
[347733165,1736086277946,-500.0,9.863e-05,2]
[347733166,1736086277956,-500.0,9.863e-05,2]
[347733167,1736086277966,-500.0,9.863e-05,2]
[347733168,1736086277976,-2197.06,9.863e-05,2]
[347733169,1736086277986,-1703.87,9.863e-05,2]
[347733170,1736086277996,-500.0,9.863e-05,2]
[347733171,1736086278006,-500.0,9.863e-05,2]
[347733172,1736086278015,-899.43,9.863e-05,2]
[347733173,1736086278025,-2373.8,9.863e-05,2]
[347733174,1736086278035,-1005.15,9.863e-05,2]
[347733175,1736086278044,-508.31,9.863e-05,2]
[347733176,1736086278054,-500.0,9.863e-05,2]
[347733177,1736086278064,-500.0,9.863e-05,2]
[347733178,1736086278074,-500.0,9.863e-05,2]
[347733179,1736086278085,-500.0,9.863e-05,2]
[347733180,1736086278095,-500.0,9.863e-05,2]
[347733181,1736086278105,-2174.62,9.863e-05,2]
[347733182,1736086278115,-911.64,9.863e-05,2]
[347733183,1736086278128,-2889.58,9.863e-05,2]
[347733184,1736086278138,-1428.62,9.863e-05,2]
[347733185,1736086278148,-655.98,9.863e-05,2]
[347733186,1736086278157,-500.0,9.863e-05,2]
[347733187,1736086278167,-500.0,9.863e-05,2]
[347733188,1736086278177,-417.51816478,9.863e-05,2]
[347733189,1736086278187,-704.61,9.863e-05,2]
[347733190,1736086278198,-901.88,9.863e-05,2]
[347733191,1736086278208,-599.03,9.863e-05,2]
[347733192,1736086278218,-1497.71,9.863e-05,2]
[347733193,1736086278227,-500.0,9.863e-05,2]
[347733194,1736086278239,-500.0,9.863e-05,2]
[347733195,1736086278251,-1229.08,9.863e-05,2]
[347733196,1736086278262,-500.0,9.863e-05,2]
[347733197,1736086278273,-589.79,9.863e-05,2]
[347733198,1736086278283,-500.0,9.863e-05,2]
[347733199,1736086278293,-2359.51,9.863e-05,2]
[347733200,1736086278303,-500.0,9.863e-05,2]
[347733201,1736086278314,-560.21,9.863e-05,2]
[347733202,1736086278324,-2408.08,9.863e-05,2]
[347733203,1736086278334,-1581.41,9.863e-05,2]
[347733204,1736086278344,-500.0,9.863e-05,2]
[347733205,1736086278354,-638.7,9.863e-05,2]
[347733206,1736086278364,-500.0,9.863e-05,2]
[347733207,1736086278374,-500.0,9.863e-05,2]
[347733208,1736086278384,-1032.99,9.863e-05,2]
[347733209,1736086278395,-837.18,9.863e-05,2]
[347733210,1736086278405,-1042.34,9.863e-05,2]
[347733211,1736086278414,-3209.15,9.863e-05,2]
[347733212,1736086278424,-1100.95,9.863e-05,2]
[347733213,1736086278434,-504.24,9.863e-05,2]
[347733214,1736086278444,-500.0,9.863e-05,2]
[347733215,1736086278527,-500.0,9.863e-05,2]
[347733216,1736086278537,-974.42,9.863e-05,2]
[347733217,1736086278548,-1178.04,9.863e-05,2]
[347733218,1736086278558,-1049.33,9.863e-05,2]
[347733219,1736086278569,-1961.68,9.863e-05,2]
[347733220,1736086278578,-500.0,9.863e-05,2]
[347733221,1736086278587,-1749.25,9.863e-05,2]
[347733222,1736086278597,-930.1,9.863e-05,2]
[347733223,1736086278607,-500.0,9.863e-05,2]
[347733224,1736086278617,-1008.32,9.863e-05,2]
[347733225,1736086278629,-500.0,9.863e-05,2]
[347733226,1736086278639,-500.0,9.863e-05,2]
[347733227,1736086278649,-683.59,9.863e-05,2]
[347733228,1736086278659,-500.0,9.863e-05,2]
[347733229,1736086278670,-500.0,9.863e-05,2]
[347733230,1736086278681,-500.0,9.863e-05,2]
[347733231,1736086278690,-1412.79,9.863e-05,2]
[347733232,1736086278701,-832.75,9.863e-05,2]
[347733233,1736086278711,-500.0,9.863e-05,2]
[347733234,1736086278721,-822.24,9.863e-05,2]
[347733235,1736086278731,-500.0,9.863e-05,2]
[347733236,1736086278741,-2825.82,9.863e-05,2]
[347733237,1736086278752,-500.0,9.863e-05,2]
[347733238,1736086278762,-1523.287914,9.863e-05,2]
[347733239,1736086278771,-500.0,9.863e-05,2]
[347733240,1736086278781,-500.0,9.863e-05,2]
[347733241,1736086278791,-589.48,9.863e-05,2]
[347733242,1736086278800,-500.0,9.863e-05,2]
[347733243,1736086278811,-1678.38,9.863e-05,2]
[347733244,1736086278821,-855.83,9.863e-05,2]
[347733245,1736086278830,-511.8,9.863e-05,2]
[347733246,1736086278841,-3147.42,9.863e-05,2]
[347733247,1736086278850,-870.32,9.863e-05,2]
[347733248,1736086278860,-500.0,9.863e-05,2]
[347733249,1736086278871,-905.92,9.863e-05,2]
[347733250,1736086278882,-500.0,9.863e-05,2]
[347733251,1736086278892,-500.0,9.863e-05,2]
[347733252,1736086278903,-835.26,9.863e-05,2]
[347733253,1736086278914,-500.0,9.863e-05,2]
[347733254,1736086278924,-815.39,9.863e-05,2]
[347733255,1736086278934,-919.05,9.863e-05,2]
[347733256,1736086278944,-521.7,9.863e-05,2]
[347733257,1736086278954,-632.46,9.863e-05,2]
[347733258,1736086278964,-500.0,9.863e-05,2]
[347733259,1736086278974,-1035.87,9.863e-05,2]
[347733260,1736086278984,-1525.261953,9.863e-05,2]
[347733261,1736086278994,-932.91,9.863e-05,2]
[347733262,1736086279005,-500.0,9.863e-05,2]
[347733263,1736086279014,-517.08,9.863e-05,2]
[347733264,1736086279024,-650.48,9.863e-05,2]
[347733265,1736086279034,-1005.75,9.863e-05,2]
[347733266,1736086279044,-500.0,9.863e-05,2]
[347733267,1736086279054,-500.0,9.863e-05,2]
[347733268,1736086279064,-1429.58,9.863e-05,2]
[347733269,1736086279075,-529.27,9.863e-05,2]
[347733270,1736086279084,-1158.29,9.863e-05,2]
[347733271,1736086279094,-519.69,9.863e-05,2]
[347733272,1736086279104,-500.0,9.863e-05,2]
[347733273,1736086279113,-2958.09,9.863e-05,2]
[347733274,1736086279123,-1200.34,9.863e-05,2]
[347733275,1736086279132,-1501.22,9.863e-05,2]
[347733276,1736086279142,-500.0,9.863e-05,2]
[347733277,1736086279151,-5860.52,9.863e-05,2]
[347733278,1736086279161,-977.58,9.863e-05,2]
[347733279,1736086279171,-500.0,9.863e-05,2]
[347733280,1736086279180,-500.0,9.863e-05,2]
[347733281,1736086279190,-3536.32,9.863e-05,2]
[347733282,1736086279199,-678.69,9.863e-05,2]
[347733283,1736086279209,-628.69,9.863e-05,2]
[347733284,1736086279219,-500.0,9.863e-05,2]
[347733285,1736086279229,-3332.56,9.863e-05,2]
[347733286,1736086279239,-1935.77,9.863e-05,2]
[347733287,1736086279251,-500.0,9.863e-05,2]
[347733288,1736086279260,-504.51,9.863e-05,2]
[347733289,1736086279269,-879.4,9.863e-05,2]
[347733290,1736086279279,-1630.51,9.863e-05,2]
[347733291,1736086279289,-1311.86,9.863e-05,2]
[347733292,1736086279299,-519.6,9.863e-05,2]
[347733293,1736086279310,-500.0,9.863e-05,2]
[347733294,1736086279319,-9308.75,9.863e-05,2]
[347733295,1736086279329,-1213.07,9.863e-05,2]
[347733296,1736086279339,-500.0,9.863e-05,2]
[347733297,1736086279349,-500.0,9.863e-05,2]
[347733298,1736086279359,-4669.0,9.863e-05,2]
[347733299,1736086279368,-3435.58,9.863e-05,2]
[347733300,1736086279379,-1489.62,9.863e-05,2]
[347733301,1736086279390,-1597.97,9.863e-05,2]
[347733302,1736086279399,-1263.16,9.863e-05,2]
[347733303,1736086279409,-5012.35,9.863e-05,2]
[347733304,1736086279418,-2078.73,9.863e-05,2]
[347733305,1736086279428,-500.0,9.863e-05,2]
[347733306,1736086279438,-500.0,9.863e-05,2]
[347733307,1736086279448,-500.0,9.863e-05,2]
[347733308,1736086279458,-2864.48,9.863e-05,2]
[347733309,1736086279467,-1249.3,9.863e-05,2]
[347733310,1736086279477,-513.24,9.863e-05,2]
[347733311,1736086279485,-2311.19,9.863e-05,2]
[347733312,1736086279495,-1964.09,9.863e-05,2]
[347733313,1736086279505,-2634.69,9.863e-05,2]
[347733314,1736086279514,-1657.78,9.863e-05,2]
[347733315,1736086279524,-574.02,9.863e-05,2]
[347733316,1736086279533,-500.0,9.863e-05,2]
[347733317,1736086279543,-5089.6,9.863e-05,2]
[347733318,1736086279553,-721.81,9.863e-05,2]
[347733319,1736086279562,-500.0,9.863e-05,2]
[347733320,1736086279571,-500.0,9.863e-05,2]
[347733321,1736086279580,-500.0,9.863e-05,2]
[347733322,1736086279589,-500.0,9.863e-05,2]
[347733323,1736086279599,-2656.05,9.863e-05,2]
[347733324,1736086279608,-16233.05,9.863e-05,2]
[347733325,1736086279619,-500.0,9.863e-05,2]
[347733326,1736086279631,-3323.05,9.863e-05,2]
[347733327,1736086279640,-500.0,9.863e-05,2]
[347733328,1736086279650,-952.05,9.863e-05,2]
[347733329,1736086279660,-6311.87,9.863e-05,2]
[347733330,1736086279669,-500.0,9.863e-05,2]
[347733331,1736086279678,-500.0,9.863e-05,2]
[347733332,1736086279688,-280.2955661,9.863e-05,2]
[347733333,1736086279698,-500.0,9.863e-05,2]
[347733334,1736086279708,-2832.75,9.863e-05,2]
[347733335,1736086279717,-1869.42,9.863e-05,2]
[347733336,1736086279727,-500.0,9.863e-05,2]
[347733337,1736086279736,-500.0,9.863e-05,2]
[347733338,1736086279746,-994.54,9.863e-05,2]
[347733339,1736086279755,-500.0,9.863e-05,2]
[347733340,1736086279765,-1239.18,9.863e-05,2]
[347733341,1736086279774,-500.0,9.863e-05,2]
[347733342,1736086279784,-1009.28,9.863e-05,2]
[347733343,1736086279793,-1207.47,9.863e-05,2]
[347733344,1736086279803,-6267.41,9.863e-05,2]
[347733345,1736086279812,-1569.79,9.863e-05,2]
[347733346,1736086279822,-1589.36,9.863e-05,2]
[347733347,1736086279831,-500.0,9.863e-05,2]
[347733348,1736086279841,-500.0,9.863e-05,2]
[347733349,1736086279850,-500.0,9.863e-05,2]
[347733350,1736086279860,-500.0,9.863e-05,2]
[347733351,1736086279869,-1024.17,9.863e-05,2]
[347733352,1736086279879,-2588.57,9.863e-05,2]
[347733353,1736086279890,-896.58,9.863e-05,2]
[347733354,1736086279899,-7016.37,9.863e-05,2]
[347733355,1736086279908,-500.0,9.863e-05,2]
[347733356,1736086279918,-500.0,9.863e-05,2]
[347733357,1736086279927,-671.19,9.863e-05,2]
[347733358,1736086279937,-500.0,9.863e-05,2]
[347733359,1736086279946,-4111.43,9.863e-05,2]
[347733360,1736086279956,-929.79,9.863e-05,2]
[347733361,1736086279966,-4240.05,9.863e-05,2]
[347733362,1736086279976,-605.42,9.863e-05,2]
[347733363,1736086279985,-3907.13,9.863e-05,2]
[347733364,1736086279995,-7031.39,9.863e-05,2]
[347733365,1736086280005,-500.0,9.863e-05,2]
[347733366,1736086280015,-500.0,9.863e-05,2]
[347733367,1736086280024,-790.23,9.863e-05,2]
[347733368,1736086280034,-1387.02,9.863e-05,2]
[347733369,1736086280044,-823.31,9.863e-05,2]
[347733370,1736086280054,-2324.58,9.863e-05,2]
[347733371,1736086280063,-500.0,9.863e-05,2]
[347733372,1736086280074,-500.0,9.863e-05,2]
[347733373,1736086280084,-2252.76,9.863e-05,2]
[347733374,1736086280093,-500.0,9.863e-05,2]
[347733375,1736086280103,-716.23,9.863e-05,2]
[347733376,1736086280113,-1363.75,9.863e-05,2]
[347733377,1736086280123,-3251.01,9.863e-05,2]
[347733378,1736086280133,-500.0,9.863e-05,2]
[347733379,1736086280143,-596.77,9.863e-05,2]
[347733380,1736086280152,-5143.92,9.863e-05,2]
[347733381,1736086280162,-500.0,9.863e-05,2]
[347733382,1736086280172,-500.0,9.863e-05,2]
[347733383,1736086280181,-1331.41,9.863e-05,2]
[347733384,1736086280191,-402.74108208,9.863e-05,2]
[347733385,1736086280201,-6239.8,9.863e-05,2]
[347733386,1736086280211,-500.0,9.863e-05,2]
[347733387,1736086280221,-8535.66,9.863e-05,2]
[347733388,1736086280230,-6109.07,9.863e-05,2]
[347733389,1736086280243,-3488.16,9.863e-05,2]
[347733390,1736086280258,-2449.34,9.863e-05,2]
[347733391,1736086280268,-500.0,9.863e-05,2]
[347733392,1736086280278,-1868.76,9.863e-05,2]
[347733393,1736086280289,-500.0,9.863e-05,2]
[347733394,1736086280299,-7071.13,9.863e-05,2]
[347733395,1736086280309,-4269.26,9.863e-05,2]
[347733396,1736086280319,-2209.49,9.863e-05,2]
[347733397,1736086280328,-841.79,9.863e-05,2]
[347733398,1736086280338,-1810.81,9.863e-05,2]
[347733399,1736086280348,-1541.47,9.863e-05,2]
[347733400,1736086280358,-3729.17,9.863e-05,2]
[347733401,1736086280367,-1708.96,9.863e-05,2]
[347733402,1736086280379,-267.67483547,9.863e-05,2]
[347733403,1736086280389,-1654.18,9.863e-05,2]
[347733404,1736086280399,-2379.7,9.863e-05,2]
[347733405,1736086280410,-2051.31,9.863e-05,2]
[347733406,1736086280420,-4321.58,9.863e-05,2]
[347733407,1736086280430,-10522.04,9.863e-05,2]
[347733408,1736086280440,-1819.97,9.863e-05,2]
[347733409,1736086280449,-562.35,9.863e-05,2]
[347733410,1736086280459,-3465.08,9.863e-05,2]
[347733411,1736086280468,-2042.12,9.863e-05,2]
[347733412,1736086280478,-500.0,9.863e-05,2]
[347733413,1736086280488,-945.76,9.863e-05,2]
[347733414,1736086280498,-777.63,9.863e-05,2]
[347733415,1736086280508,-595.33,9.863e-05,2]
[347733416,1736086280518,-500.0,9.863e-05,2]
[347733417,1736086280527,-1666.12,9.863e-05,2]
[347733418,1736086280537,-2741.12,9.863e-05,2]
[347733419,1736086280547,-500.0,9.863e-05,2]
[347733420,1736086280557,-7347.35,9.863e-05,2]
[347733421,1736086280567,-1040.91,9.863e-05,2]
[347733422,1736086280576,-702.43,9.863e-05,2]
[347733423,1736086280586,-1063.03,9.863e-05,2]
[347733424,1736086280595,-989.73,9.863e-05,2]
[347733425,1736086280605,-804.87,9.863e-05,2]
[347733426,1736086280616,-2301.74,9.863e-05,2]
[347733427,1736086280627,-798.46,9.863e-05,2]
[347733428,1736086280636,-3057.33,9.863e-05,2]
[347733429,1736086280646,-1986.58,9.863e-05,2]
[347733430,1736086280656,-500.0,9.863e-05,2]
[347733431,1736086280666,-4392.68,9.863e-05,2]
[347733432,1736086280675,-899.63,9.863e-05,2]
[347733433,1736086280685,-2929.94,9.863e-05,2]
[347733434,1736086280695,-736.62,9.863e-05,2]
[347733435,1736086280704,-956.97,9.863e-05,2]
[347733436,1736086280714,-500.0,9.863e-05,2]
[347733437,1736086280724,-2240.63,9.863e-05,2]
[347733438,1736086280734,-1666.12,9.863e-05,2]
[347733439,1736086280744,-500.0,9.863e-05,2]
[347733440,1736086280754,-3157.56,9.863e-05,2]
[347733441,1736086280763,-1129.82,9.863e-05,2]
[347733442,1736086280774,-1714.77,9.863e-05,2]
[347733443,1736086280784,-500.0,9.863e-05,2]
[347733444,1736086280794,-500.0,9.863e-05,2]
[347733445,1736086280804,-799.02,9.863e-05,2]
[347733446,1736086280814,-500.0,9.863e-05,2]
[347733447,1736086280823,-1112.43,9.863e-05,2]
[347733448,1736086280832,-500.0,9.863e-05,2]
[347733449,1736086280841,-5906.8,9.863e-05,2]
[347733450,1736086280851,-1629.2,9.863e-05,2]
[347733451,1736086280861,-1977.81,9.863e-05,2]
[347733452,1736086280871,-1258.69,9.863e-05,2]
[347733453,1736086280882,-747.98,9.863e-05,2]
[347733454,1736086280891,-1195.92,9.863e-05,2]
[347733455,1736086280902,-1925.38,9.863e-05,2]
[347733456,1736086280911,-86718.10372126,9.886e-05,2]
[347733457,1736086281472,-234262.96203749,9.886e-05,2]
[347733458,1736086281482,-2886.50389513,9.9e-05,2]
[347733459,1736086281492,-889658.26301738,9.9e-05,2]
[347733460,1736086281504,-489.1165,9.9e-05,2]
[347733461,1736086281516,-1640.41786084,9.9e-05,2]
[347733462,1736086281528,-666.219778,9.9e-05,2]
[347733463,1736086281564,-2407.38,8.219e-05,2]
[347733464,1736086281574,-434106.38115669,9.9e-05,2]
[347733465,1736086281592,-83197.945323,9.9e-05,2]
[347733466,1736086283449,-808.6,8.219e-05,2]
[347733467,1736086283459,-555.56,8.219e-05,2]
[347733468,1736086283468,-751.31849276,8.219e-05,2]
[347733469,1736086283499,-853.2001569,8.219e-05,2]
[347733470,1736086283510,-468.092625,8.219e-05,2]
[347733471,1736086283520,-33.84872534,8.219e-05,2]
[347733472,1736086283530,-500.0,8.219e-05,2]
[347733473,1736086283539,-500.0,8.219e-05,2]
[347733474,1736086283549,-500.0,8.219e-05,2]
[347733475,1736086283558,-500.0,8.219e-05,2]
[347733476,1736086283567,-500.0,8.219e-05,2]
[347733477,1736086283576,-1427.37,8.493e-05,2]
[347733478,1736086283585,-808.6,8.493e-05,2]
[347733479,1736086283595,-2106.46,8.493e-05,2]
[347733480,1736086283604,-500.0,8.493e-05,2]
[347733481,1736086283613,-500.0,8.493e-05,2]
[347733482,1736086283623,-500.0,8.493e-05,2]
[347733483,1736086283633,-500.0,8.493e-05,2]
[347733484,1736086283642,-429.47561759,8.609e-05,2]
[347733485,1736086283651,-1427.37,8.767e-05,2]
[347733486,1736086283660,-2407.38,8.767e-05,2]
[347733487,1736086283678,-440.47681241,8.767e-05,2]
[347733488,1736086283693,-368.12318759,8.767e-05,2]
[347733489,1736086283702,-500.0,8.767e-05,2]
[347733490,1736086283712,-2106.46,8.767e-05,2]
[347733491,1736086283721,-500.0,8.767e-05,2]
[347733492,1736086283731,-372.12,8.767e-05,2]
[347733493,1736086283741,-429.47561759,8.768e-05,2]
[347733494,1736086283751,-1427.37,9.041e-05,2]
[347733495,1736086283761,-644.79319482,9.041e-05,2]
[347733496,1736086283773,-1762.58680518,9.041e-05,2]
[347733497,1736086283782,-808.6,9.041e-05,2]
[347733498,1736086283792,-500.0,9.041e-05,2]
[347733499,1736086283802,-500.0,9.041e-05,2]
[347733500,1736086283811,-429.47561759,9.304e-05,2]
[347733501,1736086283822,-1427.37,9.315e-05,2]
[347733502,1736086283831,-2407.38,9.315e-05,2]
[347733503,1736086283841,-808.6,9.315e-05,2]
[347733504,1736086283850,-261.7,9.315e-05,2]